fUSD/lending_fUSD_20251013
["ID","MTS","AMOUNT","RATE_DAILY","PERIOD"]
[391094019,1760329833550,-200.0,0.00014374,2]
[391094020,1760329833560,-220.0,0.00014374,2]
[391094021,1760329833570,-220.0,0.00014374,2]
[391094022,1760329833580,-220.0,0.00014374,2]
[391094023,1760329833592,-220.0,0.00014374,2]
[391094024,1760329833602,-161.13818414,0.00014374,2]
[391094025,1760329833610,-220.0,0.00014374,2]
[391094026,1760329833620,-151.0,0.00014374,2]
[391094027,1760329833630,-220.0,0.00014374,2]
[391094028,1760329833640,-153.66289062,0.00014374,2]
[391094029,1760329833649,-151.0,0.00014374,2]
[391094030,1760329833661,-220.0,0.00014374,2]
[391094031,1760329833671,-151.0,0.00014374,2]
[391094032,1760329833680,-236.85033637,0.00014374,2]
[391094033,1760329833690,-151.0,0.00014374,2]
[391094034,1760329833699,-151.0,0.00014374,2]
[391094035,1760329833708,-151.0,0.00014374,2]
[391094036,1760329833718,-151.0,0.00014374,2]
[391094037,1760329833727,-151.0,0.00014374,2]
[391094038,1760329833736,-250.0,0.00014374,2]
[391094039,1760329833746,-151.0,0.00014374,2]
[391094040,1760329833755,-250.0,0.00014374,2]
[391094041,1760329833764,-151.0,0.00014374,2]
[391094042,1760329833773,-250.0,0.00014374,2]
[391094043,1760329833782,-151.0,0.00014374,2]
[391094044,1760329833791,-250.0,0.00014374,2]
[391094045,1760329833801,-2000.0,0.00014374,2]
[391094046,1760329833810,-151.0,0.00014374,2]
[391094047,1760329833819,-250.0,0.00014374,2]
[391094048,1760329833828,-2000.0,0.00014374,2]
[391094049,1760329833838,-250.0,0.00014374,2]
[391094050,1760329833847,-500.0,0.00014374,2]
[391094051,1760329833856,-2000.0,0.00014374,2]
[391094052,1760329833867,-2000.0,0.00014374,2]
[391094053,1760329833875,-2000.0,0.00014374,2]
[391094054,1760329833885,-2000.0,0.00014374,2]
[391094055,1760329833893,-500.0,0.00014374,2]
[391094056,1760329833902,-250.0,0.00014374,2]
[391094057,1760329833911,-2000.0,0.00014374,2]
[391094058,1760329833921,-2000.0,0.00014374,2]
[391094059,1760329833930,-500.0,0.00014374,2]
[391094060,1760329833939,-250.0,0.00014374,2]
[391094061,1760329833948,-2000.0,0.00014374,2]
[391094062,1760329833957,-2000.0,0.00014374,2]
[391094063,1760329833967,-500.0,0.00014374,2]
[391094064,1760329833977,-250.0,0.00014374,2]
[391094065,1760329833986,-151.0,0.00014374,2]
[391094066,1760329833995,-2000.0,0.00014374,2]
[391094067,1760329834005,-2000.0,0.00014374,2]
[391094068,1760329834016,-500.0,0.00014374,2]
[391094069,1760329834026,-250.0,0.00014374,2]
[391094070,1760329834035,-151.0,0.00014374,2]
[391094071,1760329834045,-2000.0,0.00014374,2]
[391094072,1760329834055,-2000.0,0.00014374,2]
[391094073,1760329834064,-167.94019275,0.00014374,2]
[391094074,1760329834074,-250.0,0.00014374,2]
[391094075,1760329834084,-151.0,0.00014374,2]
[391094076,1760329834094,-500.0,0.00014374,2]
[391094077,1760329834104,-2000.0,0.00014374,2]
[391094078,1760329834113,-2000.0,0.00014374,2]
[391094079,1760329834124,-162.79438484,0.00014374,2]
[391094080,1760329834133,-151.0,0.00014374,2]
[391094081,1760329834143,-500.0,0.00014374,2]
[391094082,1760329834153,-2000.0,0.00014374,2]
[391094083,1760329834163,-2000.0,0.00014374,2]
[391094084,1760329834172,-1000.0,0.00014374,2]
[391094085,1760329834182,-151.0,0.00014374,2]
[391094086,1760329834192,-2000.0,0.00014374,2]
[391094087,1760329834203,-500.0,0.00014374,2]
[391094088,1760329834213,-2000.0,0.00014374,2]
[391094089,1760329834223,-1000.0,0.00014374,2]
[391094090,1760329834233,-151.0,0.00014374,2]
[391094091,1760329834243,-500.0,0.00014374,2]
[391094092,1760329834252,-2000.0,0.00014374,2]
[391094093,1760329834262,-2000.0,0.00014374,2]
[391094094,1760329834274,-575.47880964,0.00014374,2]
[391094095,1760329834284,-151.0,0.00014374,2]
[391094096,1760329834293,-500.0,0.00014374,2]
[391094097,1760329834303,-2000.0,0.00014374,2]
[391094098,1760329834312,-151.0,0.00014374,2]
[391094099,1760329834322,-500.0,0.00014374,2]
[391094100,1760329834332,-2000.0,0.00014374,2]
[391094101,1760329834343,-151.0,0.00014374,2]
[391094102,1760329834352,-500.0,0.00014374,2]
[391094103,1760329834362,-151.0,0.00014374,2]
[391094104,1760329834372,-500.0,0.00014374,2]
[391094105,1760329834382,-151.0,0.00014374,2]
[391094106,1760329834391,-500.0,0.00014374,2]
[391094107,1760329834401,-151.0,0.00014374,2]
[391094108,1760329834411,-500.0,0.00014374,2]
[391094109,1760329834420,-151.0,0.00014374,2]
[391094110,1760329834431,-500.0,0.00014374,2]
[391094111,1760329834440,-151.0,0.00014374,2]
[391094112,1760329834450,-282.14913794,0.00014374,2]
[391094113,1760329834460,-182.74839534,0.00014374,2]
[391094114,1760329834469,-1000.0,0.00014374,2]
[391094115,1760329834480,-1000.0,0.00014374,2]
[391094116,1760329834490,-500.0,0.00014374,2]
[391094117,1760329834500,-1000.0,0.00014374,2]
[391094118,1760329834509,-500.0,0.00014374,2]
[391094119,1760329834518,-1000.0,0.00014374,2]
[391094120,1760329834528,-371.09941357,0.00014374,2]
[391094121,1760329834538,-417.65184803,0.00014374,2]
[391094122,1760329834547,-1000.0,0.00014374,2]
[391094123,1760329834557,-500.0,0.00014374,2]
[391094124,1760329834565,-1000.0,0.00014374,2]
[391094125,1760329834575,-500.0,0.00014374,2]
[391094126,1760329834585,-500.0,0.00014374,2]
[391094127,1760329834596,-988.47333328,0.00014374,2]
[391094128,1760329834609,-11.52666672,0.00014374,2]
[391094129,1760329834619,-500.0,0.00014374,2]
[391094130,1760329834629,-500.0,0.00014374,2]
[391094131,1760329834639,-1000.0,0.00014374,2]
[391094132,1760329834650,-500.0,0.00014374,2]
[391094133,1760329834663,-500.0,0.00014374,2]
[391094134,1760329834672,-1000.0,0.00014374,2]
[391094135,1760329834683,-500.0,0.00014374,2]
[391094136,1760329834695,-500.0,0.00014374,2]
[391094137,1760329834706,-714.17735628,0.00014374,2]
[391094138,1760329834717,-285.82264372,0.00014374,2]
[391094139,1760329834727,-500.0,0.00014374,2]
[391094140,1760329834737,-500.0,0.00014374,2]
[391094141,1760329834748,-759.74335728,0.00014374,2]
[391094142,1760329834759,-240.25664272,0.00014374,2]
[391094143,1760329834768,-500.0,0.00014374,2]
[391094144,1760329834777,-500.0,0.00014374,2]
[391094145,1760329834787,-1000.0,0.00014374,2]
[391094146,1760329834797,-500.0,0.00014374,2]
[391094147,1760329834807,-216.26335728,0.00014374,2]
[391094148,1760329834818,-99.62563354,0.00014374,2]
[391094149,1760329834828,-500.0,0.00014374,2]
[391094150,1760329834837,-500.0,0.00014374,2]
[391094151,1760329834848,-500.0,0.00014374,2]
[391094152,1760329834858,-500.0,0.00014374,2]
[391094153,1760329834868,-151.0,0.00014374,2]
[391094154,1760329834878,-5917.41787644,0.00014377,2]
[391094155,1760329834890,-4354.68732889,0.00014377,2]
[391094156,1760329834899,-502.0,0.00014411,2]
[391094157,1760329834910,-500.0,0.00014431,2]
[391094158,1760329834921,-500.0,0.00014431,2]
[391094159,1760329834930,-174.395763,0.00014431,2]
[391094160,1760329834940,-500.0,0.00014431,2]
[391094161,1760329834949,-500.0,0.00014431,2]
[391094162,1760329834959,-500.0,0.00014431,2]
[391094163,1760329834969,-500.0,0.00014431,2]
[391094164,1760329834979,-276.22544976,0.00014431,2]
[391094165,1760329834989,-10652.17309792,0.00014432,2]
[391094166,1760329834999,-2159.0,0.00014438,2]
[391094167,1760329835008,-300.0,0.00014466,2]
[391094168,1760329835018,-1552.31633139,0.00014471,2]
[391094169,1760329835030,-1203.53556011,0.00014471,2]
[391094170,1760329835040,-575.2947,0.0001448,2]
[391094171,1760329835050,-1000.0,0.0001448,2]
[391094172,1760329835060,-2500.0,0.0001448,2]
[391094173,1760329835070,-238.8159851,0.00014481,2]
[391094174,1760329835080,-3585.98315636,0.00014487,2]
[391094175,1760329835108,-393.2474532,0.00014487,2]
[391094176,1760329835120,-323.3292545,0.00014487,2]
[391094177,1760329835143,-685.08971641,0.00014487,2]
[391094178,1760329835154,-3135.65686149,0.00014487,2]
[391094179,1760329835166,-1991.29844284,0.00014487,2]
[391094180,1760329835193,-295.99999997,0.00014487,2]
[391094181,1760329838356,-280.945763,0.00014487,2]
[391094182,1760329838368,-354.75285478,0.00014487,2]
[391094183,1760329838378,-195.0,0.00014494,2]
[391094184,1760329838388,-32.51714522,0.00014494,2]
[391094251,1760329840278,-267.48285478,0.00014494,2]
[391094252,1760329840288,-300.0,0.00014494,2]
[391094253,1760329840298,-300.0,0.00014494,2]
[391094254,1760329840307,-300.48602996,0.00014494,2]
[391094255,1760329840318,-2000.0,0.00014494,2]
[391094256,1760329840327,-195.0,0.00014494,2]
[391094257,1760329840336,-2000.0,0.00014494,2]
[391094258,1760329840346,-300.0,0.00014494,2]
[391094259,1760329840355,-300.77607634,0.00014494,2]
[391094260,1760329840364,-250.0,0.00014494,2]
[391094261,1760329840373,-195.0,0.00014494,2]
[391094262,1760329840383,-361.15297108,0.00014494,2]
[391094263,1760329840392,-300.44723085,0.00014494,2]
[391094264,1760329840402,-195.0,0.00014494,2]
[391094265,1760329840412,-300.0,0.00014494,2]
[391094266,1760329840421,-300.0,0.00014494,2]
[391094267,1760329840431,-2000.0,0.00014494,2]
[391094268,1760329840439,-300.0,0.00014494,2]
[391094269,1760329840449,-300.0,0.00014494,2]
[391094270,1760329840459,-300.0,0.00014494,2]
[391094271,1760329840470,-259.51677693,0.00014494,2]
[391094272,1760329840479,-2500.0,0.00014494,2]
[391094273,1760329840489,-1393.68994348,0.000145,3]
[391094274,1760329840499,-15298.26730806,0.00014505,2]
[391094275,1760329840508,-868.18416829,0.0001454,2]
[391094276,1760329840519,-11455.01673214,0.00014542,2]
[391094277,1760329840529,-15298.26730804,0.00014549,2]
[391094278,1760329840539,-277.85819296,0.0001455,2]
[391094279,1760329840548,-1000.0,0.00014562,2]
[391094280,1760329840567,-824.85,0.00014571,2]
[391094281,1760329840578,-500.0,0.00014573,2]
[391094282,1760329840591,-500.0,0.00014573,2]
[391094283,1760329840602,-151.0,0.00014577,2]
[391094284,1760329840611,-109035.1843,0.0001458,2]
[391094285,1760329840622,-2159.0,0.00014581,2]
[391094286,1760329840635,-15298.26730804,0.00014593,2]
[391094287,1760329840646,-11878.85235123,0.00014597,2]
[391094288,1760329840657,-1000.0,0.000146,2]
[391094289,1760329840669,-1000.0,0.000146,2]
[391094290,1760329840679,-468.23485729,0.00014605,2]
[391094291,1760329840688,-2159.0,0.00014626,2]
[391094292,1760329840701,-15298.26730804,0.00014637,2]
[391094293,1760329840715,-2159.0,0.00014648,2]
[391094294,1760329840725,-1478.909,0.00014651,2]
[391094295,1760329840734,-1000.0,0.00014651,2]
[391094296,1760329840743,-880.687,0.00014651,2]
[391094297,1760329840753,-12318.36988823,0.00014652,2]
[391094298,1760329840762,-194.39429268,0.0001466,2]
[391094299,1760329840772,-3473.3541,0.0001467,2]
[391094300,1760329840783,-595.195,0.00014674,2]
[391094301,1760329840793,-15298.26730804,0.00014681,2]
[391094302,1760329840805,-1728.62798315,0.00014699,2]
[391094303,1760329840815,-1000.0,0.000147,2]
[391094304,1760329840826,-1000.0,0.000147,2]
[391094305,1760329840835,-1000.0,0.000147,2]
[391094306,1760329840845,-1000.0,0.000147,2]
[391094307,1760329840854,-1145.0,0.000147,2]
[391094308,1760329840864,-1460.0,0.000147,2]
[391094309,1760329840873,-1000.0,0.000147,2]
[391094310,1760329840883,-1000.0,0.000147,2]
[391094311,1760329840892,-12774.14957409,0.00014707,2]
[391094312,1760329840902,-15298.26730804,0.00014724,2]
[391094313,1760329840911,-151.0,0.0001476,2]
[391094314,1760329840921,-13246.79310833,0.00014762,2]
[391094315,1760329840933,-15298.26730804,0.00014768,2]
[391094316,1760329840943,-434.10478231,0.0001478,2]
[391094317,1760329840953,-158.95295011,0.0001478,2]
[391094318,1760329840962,-15298.26730804,0.00014812,2]
[391094319,1760329840972,-13736.92445334,0.00014817,2]
[391094320,1760329840983,-2159.0,0.00014817,2]
[391094321,1760329840993,-166.66,0.00014822,2]
[391094322,1760329841004,-824.85,0.00014845,2]
[391094323,1760329841013,-18792.08638005,0.0001485,2]
[391094324,1760329841022,-1017.88762,0.0001485,2]
[391094325,1760329841031,-15298.26730804,0.00014856,2]
[391094326,1760329841041,-2159.0,0.00014861,2]
[391094327,1760329841051,-420.0,0.00014869,2]
[391094328,1760329841060,-420.0,0.00014869,2]
[391094329,1760329841070,-480.0,0.0001487,2]
[391094330,1760329841079,-244.8986266,0.0001487,2]
[391094331,1760329841088,-500.33943616,0.00014873,2]
[391094332,1760329841097,-500.40266672,0.00014873,2]
[391094333,1760329841108,-500.0,0.00014873,2]
[391094334,1760329841116,-151.0,0.00014877,2]
[391094335,1760329841126,-151.0,0.00014877,2]
[391094336,1760329841135,-279.90735855,0.00014877,2]
[391094337,1760329841145,-15368.70651603,0.00014879,2]
[391094338,1760329841154,-195.08041477,0.00014879,2]
[391094339,1760329841163,-500.0,0.00014879,2]
[391094340,1760329841174,-500.0,0.00014879,2]
[391094341,1760329841182,-276.60368822,0.00014879,2]
[391094342,1760329841192,-295.97569613,0.00014879,2]
[391094343,1760329841200,-500.0,0.00014879,2]
[391094344,1760329841209,-449.29471595,0.00014879,2]
[391094345,1760329841227,-500.0,0.00014879,2]
[391094346,1760329841238,-500.0,0.00014879,2]
[391094347,1760329841247,-500.0,0.00014879,2]
[391094348,1760329841256,-569.46933689,0.00014879,2]
[391094349,1760329841266,-465415.44148435,0.0001488,2]
[391094350,1760329841275,-200.0,0.0001488,2]
[391094351,1760329841285,-222507.66123888,0.0001488,2]
[391094352,1760329841299,-3194.250153,0.0001488,2]
[391094353,1760329841311,-1113.95359225,0.0001488,2]
[391094354,1760329841359,-446.08647671,0.0001488,2]
[391094355,1760329841370,-556.27875531,0.0001488,2]
[391094358,1760329843796,-928.5963,0.0001488,2]
[391094359,1760329843820,-573.43508448,0.0001488,2]
[391094361,1760329846505,-500.0,0.00014431,2]
[391094362,1760329846516,-500.0,0.00014431,2]
[391094363,1760329846527,-500.0,0.00014431,2]
[391094364,1760329846539,-500.0,0.00014431,2]
[391094365,1760329846552,-500.0,0.00014431,2]
[391094366,1760329846562,-623.41854233,0.00014431,2]
[391094367,1760329846571,-28272.90183615,0.0001488,2]
[391094368,1760329846595,-506.7,0.0001488,2]
[391094382,1760330747921,4000.0,0.00027397,120]
[391094387,1760331031527,-1500.0,0.00013258,2]
[391094388,1760331031537,-257.44723085,0.00013258,2]
[391094389,1760331031546,-2000.0,0.00013258,2]
[391094390,1760331031555,-250.0,0.00013258,2]
[391094391,1760331031564,-194.82705088,0.00013258,2]
[391094392,1760331031573,-560.73940403,0.00013272,2]
[391094393,1760331031584,-639.26059597,0.00013272,2]
[391094394,1760331031593,-300.0,0.00013272,2]
[391094395,1760331031602,-67.45373525,0.00013273,2]
[391094396,1760331031637,-716.26569835,0.00013273,2]
[391094397,1760331031651,-1216.2805664,0.00013273,2]
[391094398,1760331031662,-2000.0,0.00013273,2]
[391094399,1760331031671,-1796.34646364,0.00013273,2]
[391094400,1760331031694,-203.65353636,0.00013273,2]
[391094401,1760331031703,-103.2274362,0.0001329,2]
[391094402,1760331031751,-257.92553488,0.0001329,2]
[391094403,1760331031760,-194.82705088,0.00013318,2]
[391094404,1760331031770,-172.06,0.00013318,2]
[391094405,1760331031779,-2561.1,0.00013318,2]
[391094406,1760331031788,-281.30379331,0.00013318,2]
[391094407,1760331031797,-876.95110952,0.0001334,2]
[391094408,1760331031809,-323.04889048,0.0001334,2]
[391094410,1760331031819,-300.0,0.0001334,2]
[391094412,1760331031828,-168.33,0.00013425,2]
[391094414,1760331031838,-1000.0,0.00013699,2]
[391094416,1760331031848,-1828.24,0.00013699,2]
[391094417,1760331031857,-150.0,0.00013985,2]
[391094419,1760331031866,-200.0,0.00013986,2]
[391094421,1760331031876,-151.0,0.00013986,2]
[391094422,1760331031886,-151.0,0.00013986,2]
[391094423,1760331031901,-151.0,0.00013986,2]
[391094424,1760331031913,-151.0,0.00013986,2]
[391094425,1760331031922,-151.0,0.00013986,2]
[391094427,1760331031931,-151.0,0.00013986,2]
[391094430,1760331031940,-248.68375745,0.00013986,2]
[391094431,1760331031949,-200.0,0.00013986,2]
[391094433,1760331031958,-200.0,0.00013986,2]
[391094435,1760331031970,-1978.0,0.00013991,2]
[391094436,1760331031979,-1978.0,0.00014,2]
[391094437,1760331031987,-1978.0,0.00014046,2]
[391094438,1760331031996,-1978.0,0.00014063,2]
[391094439,1760331032005,-2169.85571834,0.0001411,2]
[391094440,1760331032013,-1978.0,0.0001412,2]
[391094442,1760331032022,-1298.35344815,0.00014132,2]
[391094444,1760331032032,-679.64655185,0.00014132,2]
[391094445,1760331032041,-503.0,0.00014192,2]
[391094446,1760331032049,-150.0,0.00014192,2]
[391094447,1760331032058,-150.0,0.00014192,2]
[391094448,1760331032067,-150.0,0.00014192,2]
[391094449,1760331032076,-322.6107,0.0001421,2]
[391094450,1760331032084,-151.0,0.0001421,2]
[391094451,1760331032091,-9211.34798985,0.0001421,2]
[391094452,1760331032097,-466.05872623,0.0001421,2]
[391094458,1760331039482,-83.12489205,0.0001421,2]
[391094459,1760331039492,-151.0,0.0001421,2]
[391094460,1760331039501,-40.14392434,0.0001421,2]
[391094461,1760331039539,-372.24,0.0001421,2]
[391094462,1760331039597,-1587.61607566,0.0001421,2]
[391094463,1760331039607,-1641.36055904,0.0001421,2]
[391094464,1760331039616,-2000.0,0.0001421,2]
[391094465,1760331039626,-1587.61272837,0.0001421,2]
[391094466,1760331039635,-2000.0,0.0001421,2]
[391094467,1760331039644,-2000.0,0.0001421,2]
[391094468,1760331039653,-190.4221636,0.0001421,2]
[391094469,1760331039664,-1809.5778364,0.0001421,2]
[391094470,1760331039674,-2000.0,0.0001421,2]
[391094471,1760331039683,-1000.0,0.0001421,2]
[391094472,1760331039692,-668.65185757,0.0001421,2]
[391094473,1760331039701,-2000.0,0.0001421,2]
[391094474,1760331039710,-1000.0,0.0001421,2]
[391094475,1760331039719,-500.0,0.0001421,2]
[391094476,1760331039729,-2000.0,0.0001421,2]
[391094477,1760331039738,-1000.0,0.0001421,2]
[391094478,1760331039747,-2000.0,0.0001421,2]
[391094479,1760331039756,-2000.0,0.0001421,2]
[391094480,1760331039765,-1000.0,0.0001421,2]
[391094481,1760331039774,-2000.0,0.0001421,2]
[391094482,1760331039784,-1000.0,0.0001421,2]
[391094483,1760331039792,-2000.0,0.0001421,2]
[391094484,1760331039802,-1000.0,0.0001421,2]
[391094485,1760331039811,-320.33705408,0.0001421,2]
[391094486,1760331039820,-1000.0,0.0001421,2]
[391094487,1760331039830,-423.12573702,0.0001421,2]
[391094488,1760331039839,-1000.0,0.0001421,2]
[391094489,1760331039848,-837.60560396,0.0001421,2]
[391094490,1760331039858,-267.46074303,0.0001421,2]
[391094491,1760331039868,-9552.16786547,0.00014265,2]
[391094492,1760331039877,-1978.0,0.00014275,2]
[391094493,1760331039887,-562.60758663,0.00014276,2]
[391094494,1760331039898,-4921.0,0.00014292,2]
[391094495,1760331039910,-150.0,0.000143,2]
[391094496,1760331039920,-9905.5980765,0.0001432,2]
[391094498,1760331039931,-150.0,0.00014323,2]
[391094500,1760331039940,-150.0,0.00014323,2]
[391094502,1760331039949,-150.0,0.00014323,2]
[391094504,1760331039959,-500.0,0.00014323,2]
[391094506,1760331039968,-150.0,0.00014323,2]
[391094507,1760331039979,-150.0,0.00014323,2]
[391094509,1760331039988,-500.0,0.00014323,2]
[391094518,1760331040297,-150.59891275,0.00014323,2]
[391094519,1760331040307,-500.0,0.00014323,2]
[391094520,1760331040317,-150.0,0.00014323,2]
[391094521,1760331040326,-500.0,0.00014323,2]
[391094522,1760331040336,-150.0,0.00014323,2]
[391094523,1760331040345,-33401.4818,0.00014332,2]
[391094524,1760331040354,-10272.10520533,0.00014375,2]
[391094525,1760331040364,-150.0,0.00014378,2]
[391094526,1760331040373,-150.0,0.00014378,2]
[391094527,1760331040383,-150.0,0.00014378,2]
[391094528,1760331040392,-500.0,0.00014378,2]
[391094529,1760331040401,-150.0,0.00014378,2]
[391094530,1760331040411,-150.0,0.00014378,2]
[391094531,1760331040422,-500.0,0.00014378,2]
[391094532,1760331040431,-506.02077269,0.00014378,2]
[391094533,1760331040440,-199.02660303,0.0001438,2]
[391094534,1760331040449,-1000.0,0.0001438,2]
[391094535,1760331040458,-2500.0,0.0001438,2]
[391094536,1760331040468,-1978.0,0.0001438,2]
[391094537,1760331040478,-500.0,0.00014383,2]
[391094538,1760331040487,-500.0,0.00014383,2]
[391094539,1760331040496,-500.0,0.00014383,2]
[391094540,1760331040506,-339.96439921,0.00014383,2]
[391094541,1760331040515,-500.0,0.00014383,2]
[391094542,1760331040524,-500.0,0.00014383,2]
[391094543,1760331040534,-15342.28130721,0.00014384,2]
[391094544,1760331040544,-228.16013234,0.00014384,2]
[391094545,1760331040553,-150.41,0.000144,2]
[391094546,1760331040562,-452.0,0.00014408,2]
[391094547,1760331040571,-452.0,0.00014423,2]
[391094548,1760331040580,-10652.17309792,0.0001443,2]
[391094549,1760331040589,-1978.0,0.0001443,2]
[391094550,1760331040598,-170.20828115,0.00014433,2]
[391094551,1760331040607,-200.97744711,0.00014433,2]
[391094552,1760331040616,-200.60293038,0.00014433,2]
[391094553,1760331040625,-500.0,0.00014433,2]
[391094554,1760331040634,-500.0,0.00014433,2]
[391094555,1760331040644,-15342.28130713,0.00014441,2]
[391094556,1760331040653,-1978.0,0.00014455,2]
[391094557,1760331040662,-150.83261016,0.00014471,2]
[391094558,1760331040674,-500.0,0.00014471,2]
[391094559,1760331040683,-214.57173914,0.00014471,2]
[391094560,1760331040692,-150.0,0.00014471,2]
[391094561,1760331040701,-150.0,0.00014471,2]
[391094562,1760331040710,-200.0,0.00014471,2]
[391094563,1760331040719,-150.42483477,0.00014471,2]
[391094564,1760331040728,-1000.0,0.00014471,2]
[391094565,1760331040737,-500.0,0.00014473,2]
[391094566,1760331040746,-500.0,0.00014473,2]
[391094567,1760331040755,-151.0,0.00014477,2]
[391094568,1760331040765,-192465.6248,0.0001448,2]
[391094569,1760331040774,-194.39429268,0.00014484,2]
[391094570,1760331040784,-11046.30350255,0.00014485,2]
[391094571,1760331040794,-500.0,0.00014487,2]
[391094572,1760331040803,-500.0,0.00014487,2]
[391094573,1760331040812,-1978.0,0.00014496,2]
[391094574,1760331040821,-15342.28130713,0.00014499,2]
[391094575,1760331040830,-1978.0,0.00014511,2]
[391094576,1760331040839,-500.0,0.00014526,2]
[391094577,1760331040848,-1978.0,0.00014531,2]
[391094578,1760331040858,-200.0,0.00014534,2]
[391094579,1760331040867,-203.15143405,0.00014534,2]
[391094580,1760331040876,-11455.01673214,0.0001454,2]
[391094581,1760331040885,-500.0,0.00014542,2]
[391094582,1760331040894,-500.0,0.00014542,2]
[391094583,1760331040907,-724.05,0.00014548,2]
[391094584,1760331040916,-990.42432436,0.0001455,2]
[391094585,1760331040932,-420.0,0.00014551,2]
[391094586,1760331040941,-15342.28130713,0.00014556,2]
[391094587,1760331040950,-252.15420255,0.00014559,2]
[391094588,1760331040960,-500.0,0.00014581,2]
[391094589,1760331040969,-150.0,0.00014584,2]
[391094590,1760331040978,-300.0,0.00014584,2]
[391094591,1760331040987,-300.0,0.00014584,2]
[391094592,1760331040997,-300.0,0.00014584,2]
[391094593,1760331041006,-259.51677693,0.00014584,2]
[391094594,1760331041016,-2500.0,0.00014584,2]
[391094595,1760331041024,-195.0,0.00014584,2]
[391094596,1760331041034,-300.0,0.00014584,2]
[391094597,1760331041045,-301.2621063,0.00014584,2]
[391094598,1760331041055,-195.0,0.00014584,2]
[391094599,1760331041065,-195.0,0.00014584,2]
[391094600,1760331041075,-300.0,0.00014584,2]
[391094601,1760331041087,-300.0,0.00014584,2]
[391094602,1760331041096,-300.0,0.00014584,2]
[391094603,1760331041107,-250.0,0.00014584,2]
[391094604,1760331041116,-2000.0,0.00014584,2]
[391094605,1760331041126,-193.0,0.00014584,2]
[391094606,1760331041135,-195.0,0.00014584,2]
[391094607,1760331041148,-1073.31541395,0.00014584,2]
[391094608,1760331041157,-195.0,0.00014584,2]
[391094609,1760331041170,-300.0,0.00014584,2]
[391094610,1760331041179,-300.0,0.00014584,2]
[391094611,1760331041188,-11878.85235123,0.00014595,2]
[391094612,1760331041197,-500.0,0.00014597,2]
[391094613,1760331041206,-380.0,0.00014597,2]
[391094614,1760331041217,-1680.0,0.00014599,2]
[391094615,1760331041227,-868.18416829,0.00014605,2]
[391094616,1760331041236,-15342.28130713,0.00014613,2]
[391094617,1760331041246,-480.0,0.00014625,2]
[391094618,1760331041255,-238.0,0.00014625,2]
[391094619,1760331041265,-453.53382073,0.00014635,2]
[391094620,1760331041275,-151.0,0.00014647,2]
[391094621,1760331041284,-12318.36988823,0.0001465,2]
[391094622,1760331041293,-500.0,0.00014652,2]
[391094623,1760331041304,-468.23485729,0.00014662,2]
[391094624,1760331041314,-16318.24959264,0.00014662,2]
[391094625,1760331041323,-15342.28130713,0.00014671,2]
[391094626,1760331041332,-1765.114,0.00014688,2]
[391094627,1760331041341,-1000.0,0.00014688,2]
[391094628,1760331041349,-880.687,0.00014688,2]
[391094629,1760331041359,-1000.0,0.00014688,2]
[391094630,1760331041368,-1000.0,0.00014688,2]
[391094631,1760331041377,-595.195,0.00014688,2]
[391094632,1760331041386,-1895.5529761,0.00014699,2]
[391094633,1760331041396,-12774.14957409,0.00014705,2]
[391094634,1760331041405,-500.0,0.00014707,2]
[391094635,1760331041415,-15342.28130713,0.00014728,2]
[391094636,1760331041427,-1404.33128,0.0001473,2]